[Event "NJSK 2018 Meisjes C"]
[Site "Assen, Netherlands"]
[Date "2018.05.02"]
[Round "4.8"]
[White "Jonkman Inza, Amelia Marry"]
[Black "Arnold, Kiri"]
[Result "1/2-1/2"]
[TimeControl "40/90m+30m+30sec/move"]
[WhiteElo "1222"]
[BlackElo "1340"]

1. d4 {[%clk 01:30:59]} {[%emt 00:00:01]} Nf6 {[%clk 01:30:06]} {[%emt
00:00:55]} 2. c4 {[%clk 01:31:17]} {[%emt 00:00:12]} c5 {[%clk 01:30:01]}
{[%emt 00:00:34]} 3. Nf3 {[%clk 01:31:06]} {[%emt 00:00:40]} g6 {[%clk
01:29:53]} {[%emt 00:00:39]} 4. Nc3 {[%clk 01:30:04]} {[%emt 00:01:32]} Bg7
{[%clk 01:29:30]} {[%emt 00:00:53]} 5. e4 {[%clk 01:29:21]} {[%emt 00:01:13]}
cxd4 {[%clk 01:15:16]} {[%emt 00:14:44]} 6. Nxd4 {[%clk 01:27:43]} {[%emt
00:02:08]} d6 {[%clk 01:13:51]} {[%emt 00:01:55]} 7. h3 {[%clk 01:24:15]}
{[%emt 00:03:57]} a6 {[%clk 01:12:28]} {[%emt 00:01:54]} 8. Bd3 {[%clk
01:20:23]} {[%emt 00:04:22]} O-O {[%clk 01:05:05]} {[%emt 00:07:53]} 9. O-O
{[%clk 01:17:44]} {[%emt 00:03:08]} Nc6 {[%clk 01:01:16]} {[%emt 00:04:20]} 10.
Nf3 {[%clk 01:14:49]} {[%emt 00:03:24]} Bd7 {[%clk 00:55:13]} {[%emt 00:06:34]}
11. Bg5 {[%clk 01:12:49]} {[%emt 00:02:30]} Rc8 {[%clk 00:51:05]} {[%emt
00:04:38]} 12. Rc1 {[%clk 01:11:47]} {[%emt 00:01:32]} Nb4 {[%clk 00:50:17]}
{[%emt 00:01:17]} 13. Be2 {[%clk 01:07:47]} {[%emt 00:04:29]} Nc6 {[%clk
00:46:50]} {[%emt 00:03:59]} 14. Qd2 {[%clk 01:03:48]} {[%emt 00:04:29]} Re8
{[%clk 00:46:06]} {[%emt 00:01:14]} 15. Rfd1 {[%clk 01:01:52]} {[%emt
00:02:24]} Be6 {[%clk 00:39:51]} {[%emt 00:06:46]} 16. Bf4 {[%clk 00:58:19]}
{[%emt 00:04:03]} Nh5 {[%clk 00:31:43]} {[%emt 00:08:39]} 17. Bh6 {[%clk
00:55:36]} {[%emt 00:03:12]} Nf6 {[%clk 00:29:45]} {[%emt 00:02:28]} 18. a3
{[%clk 00:50:13]} {[%emt 00:05:54]} Na5 {[%clk 00:28:19]} {[%emt 00:01:55]} 19.
Qg5 {[%clk 00:41:11]} {[%emt 00:09:32]} Qc7 {[%clk 00:18:24]} {[%emt 00:10:24]}
20. Nd5 {[%clk 00:26:18]} {[%emt 00:15:24]} Qd8 {[%clk 00:08:16]} {[%emt
00:10:38]} 21. Bxg7 {[%clk 00:19:39]} {[%emt 00:07:08]} Kxg7 {[%clk 00:08:43]}
{[%emt 00:00:04]} 22. b4 {[%clk 00:18:04]} {[%emt 00:02:05]} Nc6 {[%clk
00:08:45]} {[%emt 00:00:28]} 23. Nc3 {[%clk 00:15:23]} {[%emt 00:03:11]} Qc7
{[%clk 00:08:10]} {[%emt 00:01:05]} 24. c5 {[%clk 00:12:47]} {[%emt 00:03:06]}
Qb8 {[%clk 00:06:31]} {[%emt 00:02:09]} 25. cxd6 {[%clk 00:08:47]} {[%emt
00:04:30]} exd6 {[%clk 00:06:39]} {[%emt 00:00:22]} 26. Nd4 {[%clk 00:07:33]}
{[%emt 00:01:45]} Bd7 {[%clk 00:05:28]} {[%emt 00:01:40]} 27. Bf3 {[%clk
00:07:26]} {[%emt 00:00:37]} Ne5 {[%clk 00:04:55]} {[%emt 00:01:03]} 28. Be2
{[%clk 00:07:13]} {[%emt 00:00:43]} Nc6 {[%clk 00:05:11]} {[%emt 00:00:14]} 29.
f3 {[%clk 00:07:03]} {[%emt 00:00:40]} Qa7 {[%clk 00:04:43]} {[%emt 00:00:58]}
30. Qe3 {[%clk 00:07:00]} {[%emt 00:00:33]} Qb8 {[%clk 00:04:58]} {[%emt
00:00:15]} 31. Kh1 {[%clk 00:06:59]} {[%emt 00:00:31]} Re7 {[%clk 00:04:32]}
{[%emt 00:00:56]} 32. Qg5 {[%clk 00:06:48]} {[%emt 00:00:41]} Ree8 {[%clk
00:03:59]} {[%emt 00:01:04]} 33. g4 {[%clk 00:06:45]} {[%emt 00:00:33]} Rh8
{[%clk 00:03:38]} {[%emt 00:00:51]} 34. Nd5 {[%clk 00:06:02]} {[%emt 00:01:12]}
Nxd5 {[%clk 00:03:46]} {[%emt 00:00:22]} 35. Qxd5 {[%clk 00:06:11]} {[%emt
00:00:21]} Nxd4 {[%clk 00:03:28]} {[%emt 00:00:48]} 36. Qxd4+ {[%clk 00:06:14]}
{[%emt 00:00:27]} f6 {[%clk 00:03:42]} {[%emt 00:00:16]} 37. h4 {[%clk
00:06:11]} {[%emt 00:00:33]} Rxc1 {[%clk 00:03:52]} {[%emt 00:00:20]} 38. Rxc1
{[%clk 00:06:28]} {[%emt 00:00:13]} Rc8 {[%clk 00:04:03]} {[%emt 00:00:19]} 39.
Rd1 {[%clk 00:05:59]} {[%emt 00:01:00]} Ba4 {[%clk 00:03:30]} {[%emt 00:01:02]}
40. Rd2 {[%clk 00:05:58]} {[%emt 00:00:32]} Rc1 {[%clk 00:02:14]} {[%emt
00:01:46]} 41. Kg2 {[%clk 00:06:00]} {[%emt 00:00:28]} Rc2 {[%clk 00:30:05]}
{[%emt 00:02:38]} 42. g5 {[%clk 00:34:37]} {[%emt 00:01:52]} Qd8 {[%clk
00:24:45]} {[%emt 00:05:51]} 43. f4 {[%clk 00:32:08]} {[%emt 00:03:00]} Rxd2
{[%clk 00:22:24]} {[%emt 00:02:49]} 44. Qxd2 {[%emt 00:01:25]} Bc6 {[%clk
00:21:58]} 45. Bf3 {[%clk 00:31:39]} {[%emt 00:01:01]} Qe7 {[%clk 00:17:33]}
{[%emt 00:04:55]} 46. Qd4 {[%clk 00:30:07]} {[%emt 00:02:02]} Kf7 {[%clk
00:17:15]} {[%emt 00:00:48]} 47. gxf6 {[%clk 00:27:19]} {[%emt 00:03:18]} Qxf6
{[%clk 00:15:14]} {[%emt 00:02:31]} 48. Qxf6+ {[%clk 00:26:52]} {[%emt
00:00:57]} Kxf6 {[%clk 00:15:43]} {[%emt 00:00:02]} 49. Kf2 {[%clk 00:25:54]}
{[%emt 00:01:27]} h6 {[%clk 00:14:07]} {[%emt 00:02:06]} 50. Ke3 {[%clk
00:24:48]} {[%emt 00:01:36]} Bd7 {[%clk 00:11:15]} {[%emt 00:03:22]} 51. Kd4
{[%clk 00:21:20]} {[%emt 00:03:57]} Bc6 {[%clk 00:05:52]} {[%emt 00:05:53]} 52.
Bg4 {[%clk 00:18:40]} {[%emt 00:03:10]} Ke7 {[%clk 00:03:34]} {[%emt 00:02:49]}
53. e5 {[%clk 00:16:10]} {[%emt 00:02:59]} Bd7 {[%clk 00:01:54]} {[%emt
00:02:10]} 54. Bxd7 {[%clk 00:13:19]} {[%emt 00:03:21]} Kxd7 {[%clk 00:02:09]}
{[%emt 00:00:16]} 55. Ke4 {[%clk 00:13:09]} {[%emt 00:00:40]} dxe5 {[%clk
00:02:11]} {[%emt 00:00:28]} 56. Kxe5 {[%clk 00:13:24]} {[%emt 00:00:14]} Ke7
{[%emt 00:00:04]} 57. a4 {[%clk 00:10:10]} {[%emt 00:03:42]} b5 {[%clk
00:01:29]} {[%emt 00:01:41]} 58. a5 {[%clk 00:07:31]} {[%emt 00:03:09]} Kf7
{[%clk 00:01:13]} {[%emt 00:00:46]} 59. Kd6 {[%clk 00:05:29]} {[%emt 00:02:32]}
Kf6 {[%clk 00:01:16]} {[%emt 00:00:27]} 60. Kc6 {[%clk 00:05:27]} {[%emt
00:00:32]} Kf5 {[%clk 00:01:29]} {[%emt 00:00:17]} 61. Kb6 {[%clk 00:05:49]}
{[%emt 00:00:08]} Kxf4 {[%clk 00:01:35]} {[%emt 00:00:24]} 62. Kxa6 {[%clk
00:06:11]} {[%emt 00:00:08]} g5 {[%clk 00:01:54]} {[%emt 00:00:11]} 63. hxg5
{[%clk 00:06:18]} {[%emt 00:00:23]} hxg5 {[%clk 00:02:17]} {[%emt 00:00:07]} 64.
Kxb5 {[%clk 00:06:09]} {[%emt 00:00:38]} g4 {[%clk 00:02:46]} 65. a6 {[%clk
00:06:19]} {[%emt 00:00:21]} g3 {[%clk 00:03:15]} {[%emt 00:00:01]} 66. a7
{[%clk 00:06:35]} {[%emt 00:00:13]} g2 {[%clk 00:03:41]} {[%emt 00:00:05]} 67.
a8=Q {[%clk 00:06:35]} {[%emt 00:00:30]} g1=Q {[%clk 00:04:09]} {[%emt
00:00:02]} 68. Qf8+ {[%clk 00:06:28]} {[%emt 00:00:37]} Ke4 {[%clk 00:04:35]}
{[%emt 00:00:04]} 69. Qe7+ {[%clk 00:06:42]} {[%emt 00:00:16]} Kf4 {[%clk
00:04:35]} {[%emt 00:00:22]} 70. Qc5 {[%clk 00:06:25]} {[%emt 00:00:55]} Qg7
{[%clk 00:03:53]} {[%emt 00:01:03]} 71. Qf2+ {[%clk 00:05:17]} {[%emt
00:01:46]} Ke4 {[%clk 00:04:07]} {[%emt 00:00:17]} 72. Qc2+ {[%clk 00:04:07]}
{[%emt 00:01:41]} Kf4 {[%clk 00:03:36]} {[%emt 00:01:00]} 73. Ka6 {[%clk
00:03:17]} {[%emt 00:01:19]} Qa1+ {[%clk 00:02:43]} {[%emt 00:01:24]} 74. Kb5
{[%clk 00:03:25]} {[%emt 00:00:22]} Qg7 {[%clk 00:03:03]} {[%emt 00:00:10]} 75.
Kb6 {[%clk 00:03:27]} {[%emt 00:00:28]} Qg1+ {[%clk 00:02:01]} {[%emt
00:01:31]} 76. Qc5 {[%clk 00:03:42]} {[%emt 00:00:15]} Qg6+ {[%clk 00:02:04]}
{[%emt 00:00:25]} 77. Kb5 {[%clk 00:03:38]} {[%emt 00:00:37]} Qe8+ {[%clk
00:01:54]} {[%emt 00:00:40]} 78. Kc4 {[%clk 00:03:03]} {[%emt 00:01:05]} Qe2+
{[%clk 00:01:26]} {[%emt 00:00:58]} 79. Kb3 {[%clk 00:03:13]} {[%emt 00:00:18]}
Qd1+ {[%clk 00:01:20]} {[%emt 00:00:38]} 80. Qc2 {[%clk 00:03:33]} {[%emt
00:00:09]} Qxc2+ {[%clk 00:00:40]} {[%emt 00:01:11]} 81. Kxc2 {[%clk 00:03:48]}
{[%emt 00:00:15]} Ke5 {[%clk 00:01:09]} 82. Kc3 {[%emt 00:00:36]} Kd6 {[%clk
00:01:33]} {[%emt 00:00:06]} 83. Kd4 {[%clk 00:03:39]} {[%emt 00:00:34]} Kc6
{[%clk 00:01:56]} {[%emt 00:00:06]} 84. Kc4 {[%clk 00:03:55]} {[%emt 00:00:14]}
Kb6 {[%clk 00:02:20]} {[%emt 00:00:07]} 85. b5 {[%clk 00:03:57]} {[%emt
00:00:27]} Kb7 {[%clk 00:02:47]} {[%emt 00:00:02]} 86. Kc3 {[%clk 00:03:44]}
{[%emt 00:00:43]} Kc7 {[%clk 00:02:38]} {[%emt 00:00:40]} 87. Kb3 {[%clk
00:03:29]} {[%emt 00:00:45]} Kb7 {[%clk 00:02:09]} {[%emt 00:00:59]} 88. Kc4
{[%clk 00:02:44]} {[%emt 00:01:14]} Kb6 {[%clk 00:02:28]} {[%emt 00:00:12]} 89.
Kb4 {[%clk 00:03:04]} {[%emt 00:00:10]} Kb7 {[%clk 00:02:46]} {[%emt 00:00:12]}
90. Ka5 {[%clk 00:02:05]} {[%emt 00:01:29]} Ka7 {[%clk 00:03:08]} {[%emt
00:00:08]} 91. b6+ {[%clk 00:02:27]} {[%emt 00:00:08]} Kb7 {[%clk 00:03:29]}
{[%emt 00:00:09]} 92. Kb5 {[%clk 00:02:24]} {[%emt 00:00:33]} Kb8 {[%clk
00:03:43]} {[%emt 00:00:15]} 93. Kc5 {[%clk 00:02:29]} {[%emt 00:00:26]} Kb7
{[%clk 00:03:54]} {[%emt 00:00:19]} 94. Kb5 {[%clk 00:02:45]} {[%emt 00:00:14]}
Kb8 {[%clk 00:04:16]} {[%emt 00:00:08]} 95. Kc6 {[%clk 00:03:00]} {[%emt
00:00:14]} Kc8 {[%clk 00:04:43]} {[%emt 00:00:04]} 96. b7+ {[%clk 00:03:03]}
{[%emt 00:00:27]} Kb8 {[%clk 00:05:10]} {[%emt 00:00:03]} 97. Kb6 {[%clk
00:03:25]} {[%emt 00:00:08]} 1/2-1/2

[Event "NJSK 2018 Meisjes C"]
[Site "Assen, Netherlands"]
[Date "2018.05.03"]
[Round "5.1"]
[White "Hatzmann, Mirthe"]
[Black "Huang, Wendy"]
[Result "1/2-1/2"]
[TimeControl "40/90m+30m+30sec/move"]
[WhiteElo "1323"]
[BlackElo "1572"]

1. e4 {[%clk 01:30:59]} e5 {[%clk 01:30:55]} {[%emt 00:00:06]} 2. Nf3 {[%clk
01:31:24]} {[%emt 00:00:05]} Nc6 {[%clk 01:31:17]} {[%emt 00:00:08]} 3. Bc4
{[%clk 01:31:49]} {[%emt 00:00:05]} Bc5 {[%clk 01:31:36]} {[%emt 00:00:10]} 4.
d3 {[%clk 01:32:11]} {[%emt 00:00:08]} Nf6 {[%clk 01:31:59]} {[%emt 00:00:07]}
5. O-O {[%clk 01:32:27]} {[%emt 00:00:14]} d6 {[%clk 01:31:39]} {[%emt
00:00:50]} 6. Be3 {[%clk 01:31:17]} {[%emt 00:01:40]} Bb6 {[%clk 01:31:29]}
{[%emt 00:00:40]} 7. h3 {[%clk 01:30:33]} {[%emt 00:01:14]} Be6 {[%clk
01:31:29]} {[%emt 00:00:30]} 8. Bb3 {[%clk 01:30:16]} {[%emt 00:00:47]} h6
{[%clk 01:30:44]} {[%emt 00:01:15]} 9. Nc3 {[%clk 01:30:04]} {[%emt 00:00:43]}
Qd7 {[%clk 01:29:52]} {[%emt 00:01:21]} 10. d4 {[%clk 01:27:56]} {[%emt
00:02:39]} exd4 {[%clk 01:16:48]} {[%emt 00:13:33]} 11. Nxd4 {[%clk 01:27:34]}
{[%emt 00:00:52]} Nxd4 {[%clk 01:13:39]} {[%emt 00:03:39]} 12. Bxd4 {[%clk
01:27:41]} {[%emt 00:00:24]} O-O-O {[%clk 01:07:27]} {[%emt 00:06:42]} 13. Re1
{[%clk 01:13:29]} {[%emt 00:14:42]} Nh7 {[%clk 01:03:06]} {[%emt 00:04:50]} 14.
Bxe6 {[%clk 01:04:10]} {[%emt 00:09:50]} Qxe6 {[%clk 01:02:39]} {[%emt
00:00:56]} 15. Bxb6 {[%clk 00:59:23]} {[%emt 00:05:17]} axb6 {[%clk 01:02:52]}
{[%emt 00:00:18]} 16. a4 {[%clk 00:55:40]} {[%emt 00:04:13]} Qe5 {[%clk
00:58:33]} {[%emt 00:04:48]} 17. Qd5 {[%clk 00:51:15]} {[%emt 00:04:55]} Qxd5
{[%clk 00:53:23]} {[%emt 00:05:41]} 18. Nxd5 {[%clk 00:49:49]} {[%emt
00:01:55]} Rhe8 {[%clk 00:52:33]} {[%emt 00:01:20]} 19. c4 {[%clk 00:46:40]}
{[%emt 00:03:39]} Ng5 {[%clk 00:46:30]} {[%emt 00:06:33]} 1/2-1/2

[Event "NJSK 2018 Meisjes C"]
[Site "Assen, Netherlands"]
[Date "2018.05.03"]
[Round "5.2"]
[White "Basa, Manasvita"]
[Black "Bogouslavskii, Veronique"]
[Result "1/2-1/2"]
[TimeControl "40/90m+30m+30sec/move"]
[WhiteElo "1402"]
[BlackElo "1004"]

1. e4 {[%clk 01:30:59]} {[%emt 00:00:01]} e5 {[%clk 01:30:54]} {[%emt
00:00:06]} 2. Nf3 {[%clk 01:31:23]} {[%emt 00:00:06]} Nc6 {[%clk 01:31:17]}
{[%emt 00:00:08]} 3. Bc4 {[%clk 01:31:45]} {[%emt 00:00:07]} Be7 {[%clk
01:31:41]} {[%emt 00:00:06]} 4. Nc3 {[%clk 01:32:02]} {[%emt 00:00:13]} Nf6
{[%clk 01:32:01]} {[%emt 00:00:09]} 5. d3 {[%clk 01:32:18]} {[%emt 00:00:15]}
d6 {[%clk 01:32:22]} {[%emt 00:00:09]} 6. h3 {[%clk 01:32:37]} {[%emt
00:00:10]} Na5 {[%clk 01:32:23]} {[%emt 00:00:30]} 7. Bb3 {[%clk 01:32:40]}
{[%emt 00:00:27]} Nxb3 {[%clk 01:32:42]} {[%emt 00:00:11]} 8. axb3 {[%clk
01:33:02]} {[%emt 00:00:08]} O-O {[%clk 01:32:54]} {[%emt 00:00:17]} 9. O-O
{[%clk 01:33:28]} {[%emt 00:00:05]} c6 {[%clk 01:33:02]} {[%emt 00:00:23]} 10.
d4 {[%clk 01:32:07]} {[%emt 00:01:51]} Qc7 {[%clk 01:31:20]} {[%emt 00:02:12]}
11. Qd3 {[%clk 01:20:51]} {[%emt 00:11:45]} Be6 {[%clk 01:21:54]} {[%emt
00:09:56]} 12. Ne2 {[%clk 01:18:48]} {[%emt 00:02:33]} Rfd8 {[%clk 01:21:02]}
{[%emt 00:01:22]} 13. c4 {[%clk 01:17:18]} {[%emt 00:02:00]} b6 {[%clk
01:12:47]} {[%emt 00:08:45]} 14. d5 {[%clk 01:17:01]} {[%emt 00:00:47]} cxd5
{[%clk 01:12:19]} {[%emt 00:00:58]} 15. cxd5 {[%clk 01:17:16]} {[%emt
00:00:14]} Bd7 {[%clk 01:12:00]} {[%emt 00:00:49]} 16. Bd2 {[%clk 01:16:39]}
{[%emt 00:01:08]} Qb7 {[%clk 01:10:52]} {[%emt 00:01:37]} 17. Rac1 {[%clk
01:16:11]} {[%emt 00:00:58]} Rdc8 {[%clk 01:09:53]} {[%emt 00:01:29]} 18. Nh2
{[%clk 01:16:01]} {[%emt 00:00:40]} a6 {[%clk 01:08:24]} {[%emt 00:02:00]} 19.
Nc3 {[%clk 01:16:23]} {[%emt 00:00:08]} b5 {[%clk 01:07:37]} {[%emt 00:01:17]}
20. b4 {[%clk 01:15:24]} {[%emt 00:01:29]} Bd8 {[%clk 01:07:20]} {[%emt
00:00:47]} 21. f4 {[%clk 01:14:48]} {[%emt 00:01:06]} Bb6+ {[%clk 01:06:52]}
{[%emt 00:00:58]} 22. Be3 {[%clk 01:15:11]} {[%emt 00:00:07]} exf4 {[%clk
01:05:12]} {[%emt 00:02:11]} 23. Rxf4 {[%clk 01:15:33]} {[%emt 00:00:07]} Bxe3+
{[%clk 01:04:56]} {[%emt 00:00:46]} 24. Qxe3 {[%clk 01:15:53]} {[%emt
00:00:10]} Qa7 {[%clk 01:04:56]} {[%emt 00:00:30]} 25. Qxa7 {[%clk 01:15:33]}
{[%emt 00:00:50]} Rxa7 {[%clk 01:05:19]} {[%emt 00:00:07]} 26. Nf3 {[%clk
01:09:38]} {[%emt 00:06:24]} Rc4 {[%clk 01:02:17]} {[%emt 00:03:33]} 27. Nd2
{[%clk 01:09:51]} {[%emt 00:00:17]} Rxb4 {[%clk 01:01:13]} {[%emt 00:01:34]} 28.
b3 {[%clk 01:10:15]} {[%emt 00:00:06]} Rd4 {[%clk 01:01:05]} {[%emt 00:00:34]}
29. Rc2 {[%clk 01:10:25]} {[%emt 00:00:24]} Rc7 {[%clk 01:00:09]} {[%emt
00:01:26]} 30. Kf2 {[%clk 01:08:44]} {[%emt 00:02:11]} Rd3 {[%clk 00:58:58]}
{[%emt 00:01:41]} 31. Rf3 {[%clk 01:08:12]} {[%emt 00:01:02]} Rxf3+ {[%clk
00:58:36]} {[%emt 00:00:52]} 32. Kxf3 {[%clk 01:05:53]} {[%emt 00:02:49]} b4
{[%clk 00:58:43]} {[%emt 00:00:23]} 33. Nc4 {[%clk 01:06:16]} {[%emt 00:00:07]}
bxc3 {[%clk 00:58:21]} {[%emt 00:00:52]} 34. Nxd6 {[%clk 01:06:40]} {[%emt
00:00:05]} Bb5 {[%clk 00:57:09]} {[%emt 00:01:42]} 35. Kf4 {[%clk 01:05:56]}
{[%emt 00:01:15]} Kf8 {[%clk 00:52:17]} {[%emt 00:05:22]} 36. Ke5 {[%clk
01:05:29]} {[%emt 00:00:57]} Bd3 {[%clk 00:35:11]} {[%emt 00:17:36]} 37. Rc1
{[%clk 00:49:15]} {[%emt 00:16:45]} c2 {[%clk 00:34:05]} {[%emt 00:01:35]} 38.
Kd4 {[%clk 00:47:29]} {[%emt 00:02:15]} Be2 {[%clk 00:31:08]} {[%emt 00:03:27]}
39. Nc4 {[%clk 00:42:26]} {[%emt 00:05:33]} Bd1 {[%clk 00:26:18]} {[%emt
00:05:21]} 40. Nd6 {[%clk 00:31:57]} {[%emt 00:10:52]} 1/2-1/2

[Event "NJSK 2018 Meisjes C"]
[Site "Assen, Netherlands"]
[Date "2018.05.03"]
[Round "5.3"]
[White "De Zoeten, Cato"]
[Black "Raulji, Kavya"]
[Result "1-0"]
[TimeControl "40/90m+30m+30sec/move"]
[WhiteElo "1496"]
[BlackElo "1394"]

1. e4 {[%clk 01:30:58]} {[%emt 00:00:02]} c5 {[%clk 01:30:58]} {[%emt
00:00:03]} 2. Nf3 {[%clk 01:31:22]} {[%emt 00:00:06]} d6 {[%clk 01:31:23]}
{[%emt 00:00:04]} 3. d4 {[%clk 01:31:47]} {[%emt 00:00:04]} cxd4 {[%clk
01:31:51]} {[%emt 00:00:03]} 4. Nxd4 {[%clk 01:32:07]} {[%emt 00:00:10]} Nf6
{[%clk 01:32:17]} {[%emt 00:00:04]} 5. Nc3 {[%clk 01:32:23]} {[%emt 00:00:13]}
a6 {[%clk 01:32:44]} {[%emt 00:00:04]} 6. Bg5 {[%clk 01:32:37]} {[%emt
00:00:16]} e6 {[%clk 01:32:50]} {[%emt 00:00:23]} 7. f4 {[%clk 01:32:32]}
{[%emt 00:00:35]} Be7 {[%clk 01:33:06]} {[%emt 00:00:14]} 8. Qf3 {[%clk
01:32:04]} {[%emt 00:00:57]} Nbd7 {[%clk 01:33:27]} {[%emt 00:00:10]} 9. O-O-O
{[%clk 01:28:44]} {[%emt 00:03:50]} Qc7 {[%clk 01:32:01]} {[%emt 00:01:57]} 10.
Bd3 {[%clk 01:27:37]} {[%emt 00:01:35]} b5 {[%clk 01:31:56]} {[%emt 00:00:35]}
11. Rhe1 {[%clk 01:27:00]} {[%emt 00:01:07]} Bb7 {[%clk 01:25:59]} {[%emt
00:06:29]} 12. Qg3 {[%clk 01:25:01]} {[%emt 00:02:28]} b4 {[%clk 01:11:00]}
{[%emt 00:15:29]} 13. Nd5 {[%clk 01:23:19]} {[%emt 00:02:12]} Bxd5 {[%clk
00:48:42]} {[%emt 00:22:47]} 14. exd5 {[%clk 01:22:18]} {[%emt 00:01:32]} e5
{[%clk 00:43:52]} {[%emt 00:05:20]} 15. fxe5 {[%clk 01:08:43]} {[%emt
00:14:05]} Nxe5 {[%clk 00:40:07]} {[%emt 00:04:15]} 16. Nf5 {[%clk 01:04:21]}
{[%emt 00:04:51]} Rg8 {[%clk 00:30:59]} {[%emt 00:09:38]} 17. Nxe7 {[%clk
00:56:47]} {[%emt 00:08:05]} Qxe7 {[%clk 00:29:01]} {[%emt 00:02:28]} 18. Rxe5
{[%clk 00:38:35]} {[%emt 00:18:41]} dxe5 {[%clk 00:27:46]} {[%emt 00:01:45]} 19.
d6 {[%clk 00:38:04]} {[%emt 00:01:01]} Qd8 {[%clk 00:22:21]} {[%emt 00:05:56]}
20. Qxe5+ {[%clk 00:37:05]} {[%emt 00:01:29]} Kf8 {[%clk 00:22:29]} {[%emt
00:00:22]} 21. Be4 {[%clk 00:32:35]} {[%emt 00:04:58]} Rb8 {[%clk 00:20:03]}
{[%emt 00:02:58]} 22. d7 {[%clk 00:30:43]} {[%emt 00:02:22]} Rh8 {[%clk
00:16:51]} {[%emt 00:03:41]} 23. Bf4 {[%clk 00:21:43]} {[%emt 00:09:30]} Rb5
{[%clk 00:11:50]} {[%emt 00:05:32]} 24. Qc7 {[%clk 00:21:13]} {[%emt 00:00:58]}
Ke7 {[%clk 00:10:59]} {[%emt 00:01:22]} 25. Qd6# {[%clk 00:21:09]} {[%emt
00:00:33]} 1-0

[Event "NJSK 2018 Meisjes C"]
[Site "Assen, Netherlands"]
[Date "2018.05.03"]
[Round "5.4"]
[White "De Putter, Nina"]
[Black "Martinez, Sara"]
[Result "1-0"]
[TimeControl "40/90m+30m+30sec/move"]
[WhiteElo "1672"]
[BlackElo "1446"]

1. e4 {[%clk 01:30:59]} e6 {[%clk 01:30:56]} {[%emt 00:00:05]} 2. Nf3 {[%clk
01:31:22]} {[%emt 00:00:06]} d5 {[%clk 01:31:22]} {[%emt 00:00:05]} 3. e5
{[%emt 00:00:17]} c5 {[%clk 01:31:40]} 4. b4 {[%clk 01:32:01]} {[%emt
00:00:16]} cxb4 {[%clk 01:31:24]} {[%emt 00:00:46]} 5. a3 {[%clk 01:32:25]}
{[%emt 00:00:06]} Nc6 {[%clk 01:31:42]} {[%emt 00:00:12]} 6. axb4 {[%clk
01:32:47]} {[%emt 00:00:07]} Bxb4 {[%clk 01:32:05]} {[%emt 00:00:07]} 7. c3
{[%clk 01:33:08]} {[%emt 00:00:09]} Ba5 {[%clk 01:31:39]} {[%emt 00:00:57]} 8.
d4 {[%clk 01:33:25]} {[%emt 00:00:12]} Nge7 {[%clk 01:28:44]} {[%emt 00:03:25]}
9. Bd3 {[%clk 01:33:30]} {[%emt 00:00:25]} O-O {[%clk 01:28:49]} {[%emt
00:00:25]} 10. Bxh7+ {[%clk 01:33:08]} {[%emt 00:00:53]} Kh8 {[%clk 01:20:52]}
{[%emt 00:08:27]} 11. Bd3 {[%clk 01:31:51]} {[%emt 00:01:46]} Bd7 {[%clk
00:58:16]} {[%emt 00:23:07]} 12. Ng5 {[%clk 01:25:58]} {[%emt 00:06:22]} g6
{[%clk 00:39:45]} {[%emt 00:19:01]} 13. Qf3 {[%clk 01:24:43]} {[%emt 00:01:45]}
Kg7 {[%clk 00:39:16]} {[%emt 00:00:59]} 14. h4 {[%clk 01:14:47]} {[%emt
00:10:26]} Nxd4 {[%clk 00:35:05]} {[%emt 00:04:42]} 15. Qf6+ {[%clk 01:14:58]}
{[%emt 00:00:19]} Kg8 {[%clk 00:35:16]} {[%emt 00:00:19]} 16. h5 {[%clk
01:14:48]} {[%emt 00:00:38]} Nef5 {[%clk 00:35:05]} {[%emt 00:00:42]} 17. Qxd8
{[%emt 00:03:05]} Rfxd8 {[%clk 00:34:12]} {[%emt 00:00:56]} 18. hxg6 {[%clk
01:09:16]} {[%emt 00:03:54]} fxg6 {[%clk 00:34:25]} {[%emt 00:00:18]} 19. Rxa5
{[%clk 01:09:12]} {[%emt 00:00:34]} Nb3 {[%clk 00:34:43]} {[%emt 00:00:12]} 20.
Ra3 {[%clk 01:07:54]} {[%emt 00:01:46]} Nxc1 {[%clk 00:34:48]} {[%emt
00:00:26]} 21. Bxf5 {[%clk 01:08:12]} {[%emt 00:00:13]} gxf5 {[%clk 00:34:58]}
{[%emt 00:00:20]} 22. Kd2 {[%clk 01:08:29]} {[%emt 00:00:12]} Rac8 {[%clk
00:28:29]} {[%emt 00:07:00]} 23. Kxc1 {[%clk 01:08:42]} {[%emt 00:00:16]} a6
{[%clk 00:28:27]} {[%emt 00:00:33]} 24. Nh7 {[%clk 01:08:21]} {[%emt 00:00:50]}
Kg7 {[%clk 00:28:10]} {[%emt 00:00:48]} 25. Nf6 {[%clk 01:08:30]} {[%emt
00:00:20]} Bc6 {[%clk 00:27:31]} {[%emt 00:01:09]} 26. Rh7+ {[%clk 01:08:26]}
{[%emt 00:00:34]} Kf8 {[%clk 00:27:39]} {[%emt 00:00:22]} 27. c4 {[%clk
01:06:47]} {[%emt 00:02:09]} dxc4 {[%clk 00:25:17]} {[%emt 00:02:53]} 28. Rg3
{[%clk 01:07:05]} {[%emt 00:00:11]} 1-0